[Event "44th Chess Olympiad Open 2022"]
[Site "Chennai"]
[Date "2022.08.08"]
[Round "10.69"]
[White "Kamara, Ansumana"]
[Black "Carpenter, Paul A"]
[Result "0-1"]
[WhiteElo "1896"]
[BlackElo "1938"]
[Annotator "NA RC"]
[PlyCount "126"]
[EventDate "2022.??.??"]
[TimeControl "60"]

1. e4 {[%emt 0:00:15]} d6 2. d4 {[%emt 0:00:39]} Nf6 {[%emt 0:00:40]} 3. Nc3 {
[%emt 0:00:14]} Nbd7 {[%emt 0:00:12]} 4. f4 {[%emt 0:00:26]} e5 {[%emt 0:01:39]
} 5. fxe5 {[%emt 0:01:37]} dxe5 {[%emt 0:00:12]} 6. dxe5 {[%emt 0:00:11]} Nxe5
{[%emt 0:00:21]} 7. Qxd8+ {[%emt 0:00:11]} Kxd8 {[%emt 0:00:09]} 8. Bf4 {
[%emt 0:00:22]} Bd6 {[%emt 0:04:27]} 9. O-O-O {[%emt 0:00:13]} Ke7 {[%emt 0:00:
00]} 10. h3 {[%emt 0:01:32]} Nd3+ {[%emt 0:04:41]} 11. Bxd3 {[%emt 0:00:19]}
Bxf4+ {[%emt 0:00:08]} 12. Kb1 {[%emt 0:00:08]} Be6 {[%emt 0:02:24]} 13. Nf3 {
[%emt 0:00:24]} Rad8 {[%emt 0:27:51]} 14. Rhf1 {[%emt 0:03:21]} c5 {[%emt 0:00:
00]} 15. b3 {[%emt 0:01:09]} Rc8 {[%emt 0:06:13]} 16. Nh4 {[%emt 0:05:46]} Be5
{[%emt 0:03:26]} 17. Nd5+ {[%emt 0:00:03]} Kf8 {[%emt 0:25:58]} 18. c4 {
[%emt 0:00:27]} Nh5 {[%emt 0:05:41]} 19. g4 {[%emt 0:00:45]} Bxd5 {[%emt 0:00:
00]} 20. exd5 {[%emt 0:02:40]} Nf4 {[%emt 0:00:13]} 21. Bf5 {[%emt 0:01:24]}
Rd8 {[%emt 0:00:15]} 22. Rde1 {[%emt 0:01:37]} Bd6 {[%emt 0:00:40]} 23. g5 {
[%emt 0:03:09]} g6 {[%emt 0:00:44]} 24. Bg4 {[%emt 0:00:58]} h5 {[%emt 0:02:34]
} 25. gxh6 {[%emt 0:01:12]} Rxh6 {[%emt 0:00:03]} 26. Nf3 {[%emt 0:01:06]} f5 {
[%emt 0:01:10]} 27. Ne5 {[%emt 0:05:50]} Bxe5 {[%emt 0:01:24]} 28. Rxe5 {
[%emt 0:00:55]} Nxh3 {[%emt 0:00:32]} 29. Bxh3 {[%emt 0:02:33]} Rxh3 {[%emt 0:
00:00]} 30. Rd1 {[%emt 0:00:23]} Re8 {[%emt 0:00:03]} 31. Rde1 {[%emt 0:02:20]}
Rxe5 {[%emt 0:00:26]} 32. Rxe5 {[%emt 0:00:08]} Rd3 33. Kc2 {[%emt 0:00:24]}
Rd4 {[%emt 0:00:09]} 34. Kc3 {[%emt 0:01:41]} Kf7 {[%emt 0:01:34]} 35. b4 {
[%emt 0:01:07]} b6 {[%emt 0:00:09]} 36. a4 {[%emt 0:02:18]} a5 {[%emt 0:00:35]}
37. bxa5 {[%emt 0:01:11]} bxa5 {[%emt 0:00:15]} 38. Re6 {[%emt 0:00:12]} f4 {
[%emt 0:00:21]} 39. Re5 {[%emt 0:03:20]} Kf6 {[%emt 0:00:21]} 40. Re6+ {
[%emt 0:01:16]} Kf5 {[%emt 0:00:19]} 41. Rc6 {[%emt 0:31:05]} f3 {[%emt 0:00:
00]} 42. Rxc5 {[%emt 0:00:00]} f2 {[%emt 0:01:07]} 43. Kxd4 {[%emt 0:00:00]}
f1=Q {[%emt 0:00:25]} 44. d6+ {[%emt 0:00:00]} Ke6 {[%emt 0:00:49]} 45. Rd5 {
[%emt 0:01:01]} Qd1+ {[%emt 0:05:33]} 46. Kc5 {[%emt 0:00:00]} Qxa4 {[%emt 0:
00:00]} 47. Rd4 {[%emt 0:00:00]} Kd7 {[%emt 0:00:00]} 48. Kd5 {[%emt 0:00:00]}
Qc6+ {[%emt 0:00:24]} 49. Ke5 {[%emt 0:00:00]} Qc5+ {[%emt 0:00:00]} 50. Ke4 {
[%emt 0:00:00]} Qxd4+ {[%emt 0:01:17]} 51. Kxd4 {[%emt 0:00:00]} Kxd6 {[%emt 0:
00:00]} 52. c5+ {[%emt 0:00:00]} Kc6 {[%emt 0:00:00]} 53. Kc4 {[%emt 0:00:00]}
g5 {[%emt 0:00:00]} 54. Kd4 {[%emt 0:00:00]} a4 {[%emt 0:00:08]} 55. Kc4 {
[%emt 0:00:00]} g4 {[%emt 0:00:00]} 56. Kb4 {[%emt 0:00:00]} g3 {[%emt 0:00:00]
} 57. Kxa4 {[%emt 0:00:00]} Kxc5 {[%emt 0:00:00]} 58. Kb3 {[%emt 0:00:00]} g2 {
[%emt 0:00:00]} 59. Kc3 {[%emt 0:00:00]} g1=Q {[%emt 0:00:08]} 60. Kd3 {
[%emt 0:00:01]} Qe1 {[%emt 0:00:00]} 61. Kc2 {[%emt 0:00:19]} Kc4 {[%emt 0:00:
00]} 62. Kb2 {[%emt 0:00:28]} Qc3+ {[%emt 0:00:25]} 63. Kb1 {[%emt 0:00:28]}
Qd2 {[%emt 0:00:13]} 0-1

[Event "44th Chess Olympiad Open 2022"]
[Site "Chennai"]
[Date "2022.08.08"]
[Round "10.69"]
[White "Lwebuga, Ronald"]
[Black "Belzo, Krzysztof"]
[Result "0-1"]
[WhiteElo "1818"]
[BlackElo "2080"]
[Annotator "NA RC"]
[PlyCount "96"]
[EventDate "2022.??.??"]
[TimeControl "60"]

1. Nf3 {[%emt 0:00:03]} c5 {[%emt 0:00:09]} 2. c4 {[%emt 0:00:11]} Nc6 {
[%emt 0:00:08]} 3. Nc3 {[%emt 0:00:06]} g6 {[%emt 0:00:09]} 4. g3 {[%emt 0:00:
00]} Bg7 {[%emt 0:00:04]} 5. Bg2 {[%emt 0:00:08]} Nf6 {[%emt 0:00:15]} 6. O-O {
[%emt 0:00:09]} d5 {[%emt 0:00:35]} 7. cxd5 {[%emt 0:00:29]} Nxd5 {[%emt 0:00:
00]} 8. Nxd5 {[%emt 0:00:13]} Qxd5 {[%emt 0:00:02]} 9. e3 {[%emt 0:00:34]} Qd3
{[%emt 0:03:31]} 10. Ne1 {[%emt 0:02:15]} Qd6 {[%emt 0:01:34]} 11. Nc2 {
[%emt 0:00:55]} O-O {[%emt 0:04:08]} 12. Re1 {[%emt 0:01:33]} Bf5 {[%emt 0:00:
00]} 13. e4 {[%emt 0:05:19]} Be6 {[%emt 0:00:00]} 14. d3 {[%emt 0:06:25]} Rad8
{[%emt 0:00:00]} 15. Bf1 {[%emt 0:07:03]} Qd7 {[%emt 0:08:31]} 16. f4 {[%emt 0:
00:00]} Bg4 {[%emt 0:10:01]} 17. Be2 {[%emt 0:06:14]} Bxe2 {[%emt 0:00:42]} 18.
Qxe2 {[%emt 0:00:23]} Qxd3 {[%emt 0:00:21]} 19. Qxd3 {[%emt 0:01:04]} Rxd3 {
[%emt 0:00:01]} 20. Rb1 {[%emt 0:06:42]} Rfd8 {[%emt 0:04:32]} 21. e5 {[%emt 0:
00:00]} f6 {[%emt 0:07:02]} 22. exf6 {[%emt 0:00:00]} Bxf6 {[%emt 0:00:10]} 23.
Be3 {[%emt 0:00:00]} b6 {[%emt 0:01:26]} 24. Re2 {[%emt 0:02:45]} Rd1+ {
[%emt 0:02:22]} 25. Rxd1 {[%emt 0:06:23]} Rxd1+ {[%emt 0:00:02]} 26. Kg2 {
[%emt 0:00:10]} Bxb2 {[%emt 0:02:55]} 27. g4 {[%emt 0:04:39]} Kf7 {[%emt 0:00:
00]} 28. Ne1 {[%emt 0:00:47]} Bd4 {[%emt 0:05:37]} 29. Nf3 {[%emt 0:01:44]}
Bxe3 {[%emt 0:05:15]} 30. Ng5+ {[%emt 0:00:24]} Ke8 {[%emt 0:06:16]} 31. Rxe3 {
[%emt 0:00:10]} Rd2+ {[%emt 0:00:06]} 32. Kh3 {[%emt 0:00:25]} h6 {[%emt 0:00:
00]} 33. Ne4 {[%emt 0:04:54]} Rxa2 {[%emt 0:00:38]} 34. Nf6+ {[%emt 0:00:51]}
Kf7 {[%emt 0:00:35]} 35. Nd5 {[%emt 0:00:36]} Rd2 {[%emt 0:00:45]} 36. Nc7 {
[%emt 0:00:31]} c4 {[%emt 0:02:02]} 37. Kg3 {[%emt 0:01:11]} Rd7 {[%emt 0:00:
00]} 38. Nb5 {[%emt 0:00:39]} a6 {[%emt 0:00:36]} 39. Nc3 {[%emt 0:00:29]} b5 {
[%emt 0:04:23]} 40. Ne4 {[%emt 0:00:53]} Rd5 {[%emt 0:03:05]} 41. Nc3 {[%emt 0:
00:00]} Rd3 {[%emt 0:33:19]} 42. Rxd3 {[%emt 0:00:51]} cxd3 {[%emt 0:00:02]}
43. Kf2 {[%emt 0:00:20]} e5 {[%emt 0:00:53]} 44. fxe5 {[%emt 0:00:50]} Nxe5 {
[%emt 0:00:07]} 45. h3 {[%emt 0:00:08]} Nc4 {[%emt 0:01:23]} 46. Ke1 {[%emt 0:
00:00]} Kf6 {[%emt 0:01:18]} 47. Nd5+ {[%emt 0:00:11]} Ke5 {[%emt 0:00:17]} 48.
Nb4 {[%emt 0:00:11]} Kd4 {[%emt 0:00:11]} 0-1

[Event "44th Chess Olympiad Open 2022"]
[Site "Chennai"]
[Date "2022.08.08"]
[Round "10.69"]
[White "Gurner, Jem"]
[Black "Adeshole Beckley, Brian"]
[Result "1/2-1/2"]
[WhiteElo "1800"]
[BlackElo "1590"]
[Annotator "NA RC"]
[PlyCount "110"]
[EventDate "2022.??.??"]
[TimeControl "60"]

1. e4 {[%emt 0:00:03]} e6 {[%emt 0:00:16]} 2. d4 {[%emt 0:00:04]} d5 {[%emt 0:
00:00]} 3. Nd2 {[%emt 0:00:06]} Nf6 {[%emt 0:00:17]} 4. e5 {[%emt 0:00:06]}
Nfd7 {[%emt 0:00:08]} 5. c3 {[%emt 0:00:09]} c5 {[%emt 0:00:19]} 6. Bd3 {
[%emt 0:00:09]} Nc6 {[%emt 0:00:33]} 7. Ngf3 {[%emt 0:00:11]} cxd4 {[%emt 0:00:
00]} 8. cxd4 {[%emt 0:00:06]} Be7 {[%emt 0:00:47]} 9. O-O {[%emt 0:01:38]} O-O
{[%emt 0:00:54]} 10. Re1 {[%emt 0:00:20]} f6 {[%emt 0:04:50]} 11. exf6 {
[%emt 0:01:43]} Nxf6 {[%emt 0:00:12]} 12. Nf1 {[%emt 0:00:21]} Bd6 {[%emt 0:00:
00]} 13. Bg5 {[%emt 0:01:22]} h6 {[%emt 0:03:41]} 14. Bh4 {[%emt 0:00:33]} Qc7
{[%emt 0:02:03]} 15. Rc1 {[%emt 0:01:44]} Bf4 {[%emt 0:11:53]} 16. Bg3 {
[%emt 0:03:26]} Bxg3 {[%emt 0:01:22]} 17. Nxg3 {[%emt 0:00:22]} Qd6 {[%emt 0:
00:00]} 18. Bb1 {[%emt 0:03:27]} Bd7 {[%emt 0:01:51]} 19. Ne5 {[%emt 0:03:35]}
Be8 {[%emt 0:02:02]} 20. a3 {[%emt 0:08:19]} Ne7 {[%emt 0:03:04]} 21. Qd3 {
[%emt 0:03:21]} Bf7 {[%emt 0:03:07]} 22. Ne2 {[%emt 0:05:38]} Rfc8 {[%emt 0:00:
00]} 23. Nc3 {[%emt 0:00:58]} Be8 {[%emt 0:02:38]} 24. h3 {[%emt 0:06:27]} a6 {
[%emt 0:04:45]} 25. Qf3 {[%emt 0:19:48]} Qb6 {[%emt 0:05:44]} 26. Ng4 {[%emt 0:
00:00]} Nxg4 {[%emt 0:05:26]} 27. Qxg4 {[%emt 0:00:19]} Bf7 {[%emt 0:02:07]}
28. Na4 {[%emt 0:08:42]} Rxc1 {[%emt 0:17:42]} 29. Rxc1 {[%emt 0:01:02]} Qa5 {
[%emt 0:02:46]} 30. Nc5 {[%emt 0:03:47]} Qd2 {[%emt 0:01:16]} 31. Rd1 {[%emt 0:
00:00]} Qg5 {[%emt 0:00:46]} 32. Qxg5 {[%emt 0:02:02]} hxg5 {[%emt 0:00:06]}
33. b4 {[%emt 0:00:56]} b6 {[%emt 0:01:33]} 34. Nd7 {[%emt 0:02:55]} b5 {
[%emt 0:01:40]} 35. Nc5 {[%emt 0:00:54]} Nc6 {[%emt 0:00:32]} 36. Nb3 {[%emt 0:
00:00]} e5 {[%emt 0:00:54]} 37. Ba2 {[%emt 0:02:11]} e4 {[%emt 0:03:13]} 38.
Rc1 {[%emt 0:00:33]} Rc8 {[%emt 0:00:49]} 39. Na5 {[%emt 0:03:42]} Ne7 {
[%emt 0:00:19]} 40. Rxc8+ {[%emt 0:01:03]} Nxc8 {[%emt 0:00:07]} 41. Nc6 {
[%emt 0:31:27]} Nd6 {[%emt 0:33:34]} 42. Nb8 {[%emt 0:00:00]} Nf5 {[%emt 0:00:
00]} 43. Nxa6 {[%emt 0:00:00]} Nxd4 {[%emt 0:00:00]} 44. Nc7 {[%emt 0:00:00]}
Ne2+ {[%emt 0:00:00]} 45. Kf1 {[%emt 0:00:00]} Nc3 {[%emt 0:00:00]} 46. Bb3 {
[%emt 0:00:00]} d4 {[%emt 0:00:00]} 47. Bxf7+ {[%emt 0:00:00]} Kxf7 {[%emt 0:
00:00]} 48. Ke1 {[%emt 0:00:00]} Ke7 {[%emt 0:00:00]} 49. Na6 {[%emt 0:00:00]}
Nb1 {[%emt 0:00:00]} 50. Nc5 {[%emt 0:03:11]} Nxa3 {[%emt 0:00:00]} 51. Kd1 {
[%emt 0:00:00]} e3 {[%emt 0:00:00]} 52. fxe3 {[%emt 0:00:00]} dxe3 {[%emt 0:00:
00]} 53. Ke2 {[%emt 0:00:00]} Kf6 {[%emt 0:00:00]} 54. Na6 {[%emt 0:00:00]} Nc4
{[%emt 0:00:00]} 55. Nc7 {[%emt 0:00:00]} Nd6 {[%emt 0:14:31]} 1/2-1/2

[Event "44th Chess Olympiad Open 2022"]
[Site "Chennai"]
[Date "2022.08.08"]
[Round "10.70"]
[White "Ayyad, Husain"]
[Black "Knowles, Kendrick"]
[Result "1-0"]
[WhiteElo "2209"]
[BlackElo "1907"]
[Annotator "NA RC"]
[PlyCount "89"]
[EventDate "2022.??.??"]
[TimeControl "60"]

1. e4 {[%emt 0:00:19]} c6 {[%emt 0:01:11]} 2. d4 {[%emt 0:00:04]} d5 {[%emt 0:
00:00]} 3. exd5 {[%emt 0:00:01]} cxd5 {[%emt 0:00:10]} 4. Bd3 {[%emt 0:00:01]}
Nc6 {[%emt 0:00:13]} 5. c3 {[%emt 0:00:01]} Nf6 {[%emt 0:00:18]} 6. h3 {
[%emt 0:00:04]} g6 {[%emt 0:00:36]} 7. Nf3 {[%emt 0:00:04]} Bf5 {[%emt 0:00:34]
} 8. Bxf5 {[%emt 0:00:05]} gxf5 {[%emt 0:00:04]} 9. O-O {[%emt 0:00:05]} e6 {
[%emt 0:00:33]} 10. Bg5 {[%emt 0:00:03]} Be7 {[%emt 0:00:38]} 11. Bxf6 {
[%emt 0:00:07]} Bxf6 {[%emt 0:00:08]} 12. Nbd2 {[%emt 0:00:03]} Qd6 {[%emt 0:
00:00]} 13. Qe2 {[%emt 0:00:04]} O-O-O {[%emt 0:00:51]} 14. a4 {[%emt 0:00:40]}
Kb8 {[%emt 0:01:01]} 15. a5 {[%emt 0:01:19]} Rhg8 {[%emt 0:00:21]} 16. Nb3 {
[%emt 0:00:43]} Rg7 {[%emt 0:00:24]} 17. Kh1 {[%emt 0:00:18]} Rdg8 {[%emt 0:00:
00]} 18. Rg1 {[%emt 0:00:01]} Qc7 {[%emt 0:02:36]} 19. Nc5 {[%emt 0:00:57]} a6
{[%emt 0:04:56]} 20. b4 {[%emt 0:00:22]} Na7 {[%emt 0:00:07]} 21. Rac1 {
[%emt 0:04:33]} Nb5 {[%emt 0:01:29]} 22. c4 {[%emt 0:00:30]} dxc4 {[%emt 0:00:
00]} 23. Rxc4 {[%emt 0:00:27]} Qd6 {[%emt 0:00:11]} 24. Ne5 {[%emt 0:06:25]}
Rd8 {[%emt 0:01:22]} 25. Nxb7 {[%emt 0:03:53]} Kxb7 {[%emt 0:00:32]} 26. Rc6 {
[%emt 0:00:04]} Qxc6 {[%emt 0:02:33]} 27. Nxc6 {[%emt 0:14:42]} Kxc6 {[%emt 0:
00:00]} 28. Qc4+ {[%emt 0:04:44]} Kb7 {[%emt 0:05:03]} 29. Qc5 {[%emt 0:00:10]}
Rd6 {[%emt 0:00:50]} 30. Rc1 {[%emt 0:08:22]} Rg8 {[%emt 0:00:12]} 31. d5 {
[%emt 0:00:07]} Bd4 {[%emt 0:00:30]} 32. Qc2 {[%emt 0:00:19]} Rxd5 {[%emt 0:00:
00]} 33. Qe2 {[%emt 0:05:50]} Be5 {[%emt 0:02:43]} 34. Qh5 {[%emt 0:05:50]} Nd6
{[%emt 0:01:09]} 35. Rc5 {[%emt 0:02:22]} Rxc5 {[%emt 0:01:11]} 36. bxc5 {
[%emt 0:00:02]} Rc8 {[%emt 0:02:28]} 37. f4 {[%emt 0:00:09]} Bd4 {[%emt 0:00:
00]} 38. cxd6 {[%emt 0:01:34]} Rc1+ {[%emt 0:00:06]} 39. Kh2 {[%emt 0:00:02]}
Bg1+ {[%emt 0:00:24]} 40. Kg3 {[%emt 0:00:01]} Rf1 {[%emt 0:02:34]} 41. Qxf7+ {
[%emt 0:30:17]} Kc6 {[%emt 0:30:35]} 42. Qc7+ {[%emt 0:00:05]} Kd5 {[%emt 0:00:
00]} 43. Qb7+ {[%emt 0:00:18]} Kd4 {[%emt 0:00:32]} 44. Qb2+ {[%emt 0:00:27]}
Kc5 {[%emt 0:00:21]} 45. Qc3+ {[%emt 0:00:09]} 1-0

[Event "44th Chess Olympiad Open 2022"]
[Site "Chennai"]
[Date "2022.08.08"]
[Round "10.70"]
[White "Moncur, Cecil"]
[Black "Ayyad, Maher"]
[Result "0-1"]
[WhiteElo "1815"]
[BlackElo "2101"]
[Annotator "NA RC"]
[PlyCount "80"]
[EventDate "2022.??.??"]
[TimeControl "60"]

1. e4 {[%emt 0:00:26]} c5 {[%emt 0:00:04]} 2. Nc3 {[%emt 0:00:13]} e6 {[%emt 0:
00:00]} 3. g3 {[%emt 0:00:33]} d6 {[%emt 0:00:16]} 4. Bg2 {[%emt 0:00:17]} g6 {
[%emt 0:00:13]} 5. d3 {[%emt 0:00:35]} Bg7 {[%emt 0:00:06]} 6. Be3 {[%emt 0:00:
00]} Nc6 {[%emt 0:00:35]} 7. Qd2 {[%emt 0:01:01]} Nd4 {[%emt 0:00:17]} 8. Nge2
{[%emt 0:02:43]} Rb8 {[%emt 0:00:17]} 9. Nd1 {[%emt 0:03:33]} b5 {[%emt 0:00:
00]} 10. c3 {[%emt 0:00:16]} Nxe2 {[%emt 0:00:06]} 11. Qxe2 {[%emt 0:00:42]}
Bb7 {[%emt 0:00:23]} 12. O-O {[%emt 0:02:21]} Ne7 {[%emt 0:00:36]} 13. Bg5 {
[%emt 0:07:15]} h6 {[%emt 0:00:33]} 14. Bxe7 {[%emt 0:00:20]} Qxe7 {[%emt 0:00:
00]} 15. f4 {[%emt 0:01:42]} O-O {[%emt 0:00:33]} 16. Nf2 {[%emt 0:03:20]} Rfe8
{[%emt 0:01:19]} 17. Rae1 {[%emt 0:00:45]} Qd7 {[%emt 0:01:24]} 18. Qd2 {
[%emt 0:09:24]} a5 {[%emt 0:01:29]} 19. Nd1 {[%emt 0:02:21]} b4 {[%emt 0:00:23]
} 20. c4 {[%emt 0:01:25]} d5 {[%emt 0:00:12]} 21. cxd5 {[%emt 0:03:46]} Bd4+ {
[%emt 0:02:25]} 22. Kh1 {[%emt 0:00:41]} exd5 {[%emt 0:00:06]} 23. e5 {[%emt 0:
00:00]} c4 {[%emt 0:01:25]} 24. Ne3 {[%emt 0:06:22]} c3 {[%emt 0:00:31]} 25.
Qc2 {[%emt 0:02:51]} cxb2 {[%emt 0:02:32]} 26. h3 {[%emt 0:02:51]} Rbc8 {
[%emt 0:00:52]} 27. Qb1 {[%emt 0:00:29]} Bxe3 {[%emt 0:00:45]} 28. Rxe3 {
[%emt 0:00:31]} d4 {[%emt 0:00:05]} 29. Re2 {[%emt 0:05:32]} Qxh3+ {[%emt 0:00:
00]} 30. Kg1 {[%emt 0:01:46]} Qxg3 {[%emt 0:00:23]} 31. Qxb2 {[%emt 0:02:36]}
Rc3 {[%emt 0:02:04]} 32. Kh1 {[%emt 0:02:58]} Bxg2+ {[%emt 0:02:56]} 33. Rxg2 {
[%emt 0:00:24]} Qxd3 {[%emt 0:00:29]} 34. Qf2 {[%emt 0:02:31]} Qe3 {[%emt 0:00:
00]} 35. Qh4 {[%emt 0:02:09]} Qh3+ {[%emt 0:03:47]} 36. Qxh3 {[%emt 0:00:23]}
Rxh3+ {[%emt 0:00:08]} 37. Rh2 {[%emt 0:00:21]} Rxh2+ {[%emt 0:00:15]} 38. Kxh2
{[%emt 0:00:15]} Rc8 {[%emt 0:00:09]} 39. Rf2 {[%emt 0:00:23]} d3 {[%emt 0:00:
00]} 40. Kg3 {[%emt 0:00:42]} Rc2 {[%emt 0:00:07]} 0-1

[Event "44th Chess Olympiad Open 2022"]
[Site "Chennai"]
[Date "2022.08.08"]
[Round "10.70"]
[White "Shaker, Musab"]
[Black "Albury, Noah"]
[Result "1/2-1/2"]
[WhiteElo "1705"]
[BlackElo "1324"]
[Annotator "NA RC"]
[PlyCount "89"]
[EventDate "2022.??.??"]
[TimeControl "60"]

1. d4 {[%emt 0:00:05]} d5 {[%emt 0:00:06]} 2. Nf3 {[%emt 0:00:12]} Nf6 {
[%emt 0:00:09]} 3. Bf4 {[%emt 0:00:42]} c5 {[%emt 0:00:16]} 4. e3 {[%emt 0:00:
00]} Nc6 {[%emt 0:01:01]} 5. c3 {[%emt 0:01:48]} Qb6 {[%emt 0:02:14]} 6. Qb3 {
[%emt 0:01:56]} c4 {[%emt 0:01:01]} 7. Qc2 {[%emt 0:00:42]} Bf5 {[%emt 0:04:44]
} 8. Qc1 {[%emt 0:00:55]} h6 {[%emt 0:00:49]} 9. h3 {[%emt 0:00:39]} e6 {
[%emt 0:02:10]} 10. Be2 {[%emt 0:00:57]} Be7 {[%emt 0:01:05]} 11. Nbd2 {
[%emt 0:01:05]} Qd8 {[%emt 0:02:44]} 12. Bd1 {[%emt 0:02:25]} O-O {[%emt 0:00:
00]} 13. O-O {[%emt 0:01:06]} Bd6 {[%emt 0:03:24]} 14. Bxd6 {[%emt 0:01:12]}
Qxd6 {[%emt 0:00:04]} 15. Bc2 {[%emt 0:01:19]} Bxc2 {[%emt 0:01:15]} 16. Qxc2 {
[%emt 0:02:27]} b5 {[%emt 0:03:14]} 17. e4 {[%emt 0:03:16]} Nxe4 {[%emt 0:00:
00]} 18. Nxe4 {[%emt 0:00:21]} dxe4 {[%emt 0:00:07]} 19. Qxe4 {[%emt 0:00:17]}
Qd5 {[%emt 0:01:18]} 20. Qf4 {[%emt 0:06:19]} Rab8 {[%emt 0:09:40]} 21. Rfe1 {
[%emt 0:02:27]} b4 {[%emt 0:04:59]} 22. Ne5 {[%emt 0:10:56]} bxc3 {[%emt 0:00:
00]} 23. bxc3 {[%emt 0:02:46]} Rb2 {[%emt 0:03:11]} 24. Reb1 {[%emt 0:15:42]}
Nxe5 {[%emt 0:11:42]} 25. Rxb2 {[%emt 0:06:08]} Nd3 {[%emt 0:00:09]} 26. Qd2 {
[%emt 0:00:22]} Nxb2 {[%emt 0:00:12]} 27. Qxb2 {[%emt 0:00:10]} e5 {[%emt 0:00:
00]} 28. Rd1 {[%emt 0:08:19]} Rd8 {[%emt 0:03:01]} 29. Qe2 {[%emt 0:03:52]} Qb5
{[%emt 0:06:41]} 30. Qc2 {[%emt 0:13:52]} exd4 {[%emt 0:02:00]} 31. Rxd4 {
[%emt 0:01:54]} Rxd4 {[%emt 0:00:40]} 32. cxd4 {[%emt 0:00:15]} Qb4 {[%emt 0:
00:00]} 33. d5 {[%emt 0:06:49]} Qe1+ {[%emt 0:02:13]} 34. Kh2 {[%emt 0:00:38]}
Qe5+ {[%emt 0:00:15]} 35. g3 {[%emt 0:01:23]} Qxd5 {[%emt 0:00:12]} 36. Kg1 {
[%emt 0:01:31]} Qd4 {[%emt 0:01:40]} 37. Kg2 {[%emt 0:01:21]} c3 {[%emt 0:00:
00]} 38. Kf1 {[%emt 0:01:00]} a5 {[%emt 0:08:52]} 39. a4 {[%emt 0:01:48]} Qb4 {
[%emt 0:03:55]} 40. Ke2 {[%emt 0:00:28]} Kf8 {[%emt 0:02:10]} 41. Kd3 {[%emt 0:
00:00]} Ke7 {[%emt 0:30:41]} 42. Qxc3 {[%emt 0:00:00]} Qxa4 {[%emt 0:00:00]}
43. Qe5+ {[%emt 0:00:00]} Kf8 {[%emt 0:00:00]} 44. Qc5+ {[%emt 0:00:00]} Ke8 {
[%emt 0:00:00]} 45. Qe5+ {[%emt 0:00:00]} 1/2-1/2

[Event "44th Chess Olympiad Open 2022"]
[Site "Chennai"]
[Date "2022.08.08"]
[Round "10.70"]
[White "Lockhart, Kenville"]
[Black "Al-Burshaid, Ebrahim"]
[Result "0-1"]
[WhiteElo "1551"]
[BlackElo "1702"]
[Annotator "NA RC"]
[PlyCount "118"]
[EventDate "2022.??.??"]
[TimeControl "60"]

1. e4 {[%emt 0:00:05]} e5 {[%emt 0:00:12]} 2. Nf3 {[%emt 0:00:28]} Nc6 {
[%emt 0:00:05]} 3. Nc3 {[%emt 0:00:12]} Nf6 {[%emt 0:00:43]} 4. Bb5 {[%emt 0:
00:00]} d6 {[%emt 0:03:09]} 5. O-O {[%emt 0:03:29]} Be7 {[%emt 0:00:38]} 6. d4
{[%emt 0:01:55]} exd4 {[%emt 0:00:30]} 7. Nxd4 {[%emt 0:00:10]} Bd7 {[%emt 0:
00:00]} 8. Nxc6 {[%emt 0:00:18]} bxc6 {[%emt 0:00:42]} 9. Ba4 {[%emt 0:01:56]}
O-O {[%emt 0:00:27]} 10. Bf4 {[%emt 0:00:27]} Rb8 {[%emt 0:00:50]} 11. e5 {
[%emt 0:02:16]} Ne8 {[%emt 0:09:16]} 12. a3 {[%emt 0:04:47]} d5 {[%emt 0:01:20]
} 13. Re1 {[%emt 0:01:48]} g6 {[%emt 0:04:27]} 14. b4 {[%emt 0:06:56]} Ng7 {
[%emt 0:01:47]} 15. Bh6 {[%emt 0:00:49]} Re8 {[%emt 0:00:34]} 16. Bxg7 {
[%emt 0:00:26]} Kxg7 {[%emt 0:00:48]} 17. Qd4 {[%emt 0:00:03]} Rb6 {[%emt 0:00:
00]} 18. h3 {[%emt 0:04:01]} Be6 {[%emt 0:02:38]} 19. Bb3 {[%emt 0:06:38]} a5 {
[%emt 0:01:19]} 20. Na4 {[%emt 0:01:50]} Rb5 {[%emt 0:04:31]} 21. Nc5 {[%emt 0:
00:00]} Bxc5 {[%emt 0:15:01]} 22. bxc5 {[%emt 0:00:05]} Qe7 {[%emt 0:00:17]}
23. a4 {[%emt 0:05:11]} Rb4 {[%emt 0:05:02]} 24. Qe3 {[%emt 0:02:13]} d4 {
[%emt 0:01:40]} 25. Qf3 {[%emt 0:00:03]} Bxb3 {[%emt 0:01:51]} 26. cxb3 {
[%emt 0:00:07]} Qe6 {[%emt 0:04:28]} 27. Qf6+ {[%emt 0:06:36]} Qxf6 {[%emt 0:
00:00]} 28. exf6+ {[%emt 0:00:10]} Kf8 {[%emt 0:00:07]} 29. Rxe8+ {[%emt 0:00:
00]} Kxe8 {[%emt 0:01:08]} 30. Rb1 {[%emt 0:00:02]} d3 {[%emt 0:04:00]} 31. Kf1
{[%emt 0:00:04]} Kd7 {[%emt 0:02:14]} 32. f3 {[%emt 0:02:14]} Ke6 {[%emt 0:00:
00]} 33. Ke1 {[%emt 0:00:14]} Kxf6 {[%emt 0:01:56]} 34. Kd2 {[%emt 0:00:15]}
Rd4 {[%emt 0:00:10]} 35. Re1 {[%emt 0:00:57]} Rd5 {[%emt 0:00:43]} 36. h4 {
[%emt 0:06:56]} h5 {[%emt 0:08:48]} 37. f4 {[%emt 0:09:54]} Rd4 {[%emt 0:08:55]
} 38. g3 {[%emt 0:00:29]} Rb4 {[%emt 0:00:06]} 39. Kc3 {[%emt 0:00:22]} Kf5 {
[%emt 0:00:53]} 40. Rd1 {[%emt 0:00:24]} Ke4 {[%emt 0:00:27]} 41. Re1+ {
[%emt 0:31:42]} Kf3 {[%emt 0:30:23]} 42. Rd1 {[%emt 0:01:35]} Kxg3 {[%emt 0:00:
00]} 43. Rxd3+ {[%emt 0:00:12]} Kxh4 {[%emt 0:00:41]} 44. f5 {[%emt 0:00:40]}
Kg5 {[%emt 0:00:42]} 45. fxg6 {[%emt 0:04:35]} fxg6 {[%emt 0:00:11]} 46. Rd4 {
[%emt 0:00:02]} Rb7 {[%emt 0:03:12]} 47. b4 {[%emt 0:01:25]} axb4+ {[%emt 0:00:
00]} 48. Rxb4 {[%emt 0:00:11]} Ra7 {[%emt 0:00:52]} 49. Rd4 {[%emt 0:01:30]} h4
{[%emt 0:00:40]} 50. Kb4 {[%emt 0:00:09]} Kh5 {[%emt 0:02:14]} 51. a5 {[%emt 0:
00:00]} g5 {[%emt 0:00:18]} 52. Re4 {[%emt 0:00:50]} h3 {[%emt 0:00:37]} 53.
Re5 {[%emt 0:03:11]} Kh4 {[%emt 0:00:26]} 54. Re6 {[%emt 0:00:02]} g4 {[%emt 0:
00:00]} 55. Rxc6 {[%emt 0:00:48]} h2 {[%emt 0:01:28]} 56. Kb5 {[%emt 0:00:20]}
g3 {[%emt 0:02:36]} 57. a6 {[%emt 0:00:31]} Kg5 {[%emt 0:00:42]} 58. Rxc7 {
[%emt 0:01:06]} Rxc7 {[%emt 0:00:11]} 59. Kb6 {[%emt 0:02:26]} Rxc5 {[%emt 0:
00:00]} 0-1